[Event "81st Italian Championship 2022"]
[Site "Cagliari"]
[Date "2022.11.12"]
[Round "1.1"]
[White "Moroni, Luca Jr"]
[Black "Barp, Alberto"]
[Result "1-0"]
[ECO "D41"]
[WhiteElo "2559"]
[BlackElo "2412"]
[Annotator "TA"]
[PlyCount "157"]
[EventDate "2022.11.12"]
[EventType "tourn"]
[EventCountry "ITA"]
[SourceTitle "playchess.com"]
[Source "ChessBase"]
[SourceQuality "1"]
[TimeControl "40/6000+30:20/3000:900+30"]

{[%evp 26,157,0,4,5,0,0,0,21,0,0,0,0,0,0,0,0,-1,-16,-37,-35,-23,0,-70,-51,-75,-49,-47,11,8,12,15,40,48,93,87,74,43,44,0,0,0,0,0,0,0,129,120,767,-37,-37,-39,22,22,22,22,119,119,119,119,119,111,212,212,217,210,240,240,240,240,240,240,240,240,240,240,239,229,213,203,177,155,154,154,311,311,311,311,311,311,311,311,311,311,311,311,304,304,304,304,339,339,346,331,283,227,335,335,335,335,331,331,331,328,335,320,313,306,306,302,786,616,29979,29980,29980,29981,29982,29983,29983,29984,29984,29985,29985,29986]} 1. d4 {[%emt 0:00:03]} Nf6 {[%emt 0:00:07]} 2. c4 {[%emt 0:00:06]} e6 {[%emt 0:00:30]} 3. Nf3 {[%emt 0:00:30]} d5 {[%emt 0:00:30]} 4. Nc3 {[%emt 0:00:30]} c5 {[%emt 0:00:30]} 5. cxd5 {[%emt 0:00:30]} Nxd5 {[%emt 0:00:30]} 6. e4 {[%emt 0:00:30]} Nxc3 {[%emt 0:00:30]} 7. bxc3 {[%emt 0:00:30]} cxd4 {[%emt 0:00:30]} 8. cxd4 {[%emt 0:00:30]} Bb4+ {[%emt 0:00:30]} 9. Bd2 {[%emt 0:00:30]} Bxd2+ {[%emt 0:00:30]} 10. Qxd2 {[%emt 0:00:00]} O-O {[%emt 0:00:00]} 11. Bc4 {[%emt 0:00:00]} Nd7 {[%emt 0:00:00]} 12. O-O {[%emt 0:00:00]} b6 {[%emt 0:00:00]} 13. Rad1 {[%emt 0:00:00]} Bb7 {[%emt 0:00:00]} 14. Rfe1 {[%emt 0:00:00]} Rc8 {[%emt 0:00:00] D41: Queen's Gambit Declined: Semi-Tarrasch with 5 cxd5.} 15. Bb3 {[%emt 0:00:00]} Re8 {[%emt 0:00:00]} 16. h3 {[%emt 0:00:00]} Qf6 {[%emt 0:00:00] The position is equal.} 17. Re3 {[%emt 0:00:00]} Qf4 {[%emt 0:01:41]} 18. Qe2 {[%emt 0:09:02]} Nf6 {[%emt 0:07:16][%cal Rb7e4]} 19. g3 {[%emt 0:23:45]} Qc7 {[%emt 0:14:01]} 20. Ne5 {[%emt 0:08:03] [#]} Re7 $146 {[%emt 0:41:25]} ({Predecessor:} 20... b5 21. Ng4 Nxg4 22. hxg4 Qb6 23. d5 exd5 24. Bxd5 Bxd5 25. Rxd5 a6 26. g5 h6 {½-½ (36) Mchedlishvili,M (2593)-Macovei,A (2478) Chennai 2022}) 21. Qf3 {[%emt 0:18:21]} b5 {[%emt 0:11:49]} 22. Qf4 {[%emt 0:14:15]} Rd8 {[%emt 0:05:45] Against d5} 23. g4 {[%emt 0:08:35]} Nd7 {[%emt 0:03:53]} 24. Red3 {[%emt 0:04:08]} (24. Ng6 $11 Qxf4 25. Nxf4) 24... a5 $15 {[%emt 0:06:28]} 25. a4 {[%emt 0:03:45]} bxa4 {[%emt 0:00:47]} 26. Bxa4 {[%emt 0:00:08]} Nf8 {[%emt 0:00:15]} (26... Nb6 $15 27. Rc1 Qb8) 27. Qe3 $11 {[%emt 0:05:45]} Ng6 {[%emt 0:02:21]} 28. Rc3 {[%emt 0:01:29][%cal Bd3c3,Bc3c5,Bc5e5][%mdl 32]} Qd6 {[%emt 0:00:33]} 29. Rc5 {[%emt 0:03:40]} f6 {[%emt 0:06:56]} 30. Nxg6 {[%emt 0:06:05] White has more active pieces.} hxg6 {[%emt 0:00:02]} 31. e5 {[%emt 0:01:04]} fxe5 {[%emt 0:02:23]} 32. Rxe5 {[%emt 0:00:26] Hoping for d5.} Bd5 {[%emt 0:00:49]} 33. Bc2 {[%emt 0:01:16] And now Qg5 would win.} Rf8 $1 {[%emt 0:02:22]} 34. Qg5 {[%emt 0:01:52]} Rf3 {[%emt 0:02:25]} 35. Rd3 {[%emt 0:01:33] Threatens to win with Rxf3.} Rxd3 {[%emt 0:00:40]} (35... Rf6 $11) 36. Bxd3 $16 {[%emt 0:00:01]} Qa3 $2 {[%emt 0:01:06][%mdl 8192]} (36... Qb4 $16) 37. Bxg6 $2 {[%emt 0:01:19]} (37. Rxd5 $18 {White threatens Rd8+ and mate.} exd5 38. Qxd5+ Rf7 39. Bxg6) 37... Qa1+ $15 {[%emt 0:01:16]} (37... Qxh3 {is a self mate.} 38. Rxd5 (38. Be4 Bxe4 39. Rxe4 Rb7 $11) (38. Be4 Bxe4 39. Rxe4 Rb7 $11)) 38. Kh2 {[%emt 0:00:01]} Qxd4 {[%emt 0:00:30]} (38... Qh1+ $15 39. Kg3 Qg2+ 40. Kh4 Qxf2+ 41. Kh5 Rd7) 39. Kg3 $11 {[%emt 0:00:58] Intending Rxd5 and mate.} Qc3+ {[%emt 0:00:35]} 40. Kh4 {[%emt 0:00:42]} Bg2 {[%emt 0:00:31] White leaves nothing to chance now.} (40... Rd7 $1 $11 {remains equal.}) 41. Re3 $40 {[%emt 0:15:46][%mdl 128] White is out for blood.} Qf6 {[%emt 0:02:33]} 42. f3 $1 {[%emt 0:02:35]} Qxg5+ {[%emt 0:25:44]} 43. Kxg5 {[%emt 0:00:00][%mdl 4096] Endgame KRB-KRB} Kf8 {[%emt 0:00:00]} (43... Rb7 $16 {is a better defense.}) 44. Ra3 $1 $18 {[%emt 0:15:18]} Ra7 {[%emt 0:01:02]} 45. Ra1 {[%emt 0:01:10] Inhibits Bf1.} Ke7 {[%emt 0:12:15]} 46. Kf4 {[%emt 0:00:38]} Bxh3 {[%emt 0:01:01] [#]} 47. Kg3 $1 {[%emt 0:00:00]} Kf6 {[%emt 0:00:00]} 48. Be4 {[%emt 0:01:56]} Bxg4 {[%emt 0:00:00]} 49. Kxg4 {[%emt 0:00:00] KRB-KR} ({But not} 49. fxg4 $6 Ke5 50. Ra4 Rc7) 49... Ra6 {[%emt 0:00:36]} 50. Kf4 {[%emt 0:01:23]} Ra7 {[%emt 0:00:00]} 51. Ra4 {[%emt 0:00:50]} Ra6 {[%emt 0:00:08]} 52. Ke3 {[%emt 0:00:02]} Ke5 {[%emt 0:00:28]} 53. Kd3 {[%emt 0:03:34]} Ra7 {[%emt 0:00:44]} 54. Kc4 {[%emt 0:01:01]} g5 $2 {[%emt 0:00:21] [#]} (54... Rc7+ $16 55. Kb5 g5) 55. Kd3 $1 {[%emt 0:02:40]} Rd7+ {[%emt 0:01:33]} 56. Ke3 {[%emt 0:00:01]} Ra7 {[%emt 0:00:00]} 57. Bg6 {[%emt 0:00:49]} Ra6 {[%emt 0:00:00]} 58. Bd3 {[%emt 0:00:00]} Ra7 {[%emt 0:00:00]} 59. Bf1 {[%emt 0:00:00]} Ra8 {[%emt 0:00:33]} 60. Bh3 {[%emt 0:00:00]} Ra6 {[%emt 0:00:00]} 61. Bg4 {[%emt 0:15:56]} Kd5 {[%emt 0:17:07]} 62. Kd3 {[%emt 0:00:30]} Kc5 {[%emt 0:00:00]} 63. Ke4 {[%emt 0:00:00]} Kd6 {[%emt 0:00:00]} 64. Kd4 {[%emt 0:00:00]} Ra7 {[%emt 0:00:00]} 65. Ra3 {[%emt 0:00:00]} Ra6 {[%emt 0:00:00]} (65... e5+ $142 66. Ke4 a4 67. Rd3+ Kc5) 66. Re3 {[%emt 0:00:00]} Ke7 {[%emt 0:00:00]} 67. Kc4 {[%emt 0:00:08]} Kf6 {[%emt 0:01:49]} 68. Kb5 {[%emt 0:00:38] Against Rc6} Rd6 {[%emt 0:00:08]} 69. Kxa5 {[%emt 0:00:24]} Rd5+ {[%emt 0:01:05]} 70. Kb4 {[%emt 0:00:32]} Rd6 {[%emt 0:00:59]} 71. Kc5 {[%emt 0:00:42]} Ra6 {[%emt 0:00:17]} 72. Re4 {[%emt 0:00:57]} Ra5+ $2 {[%emt 0:01:08]} (72... Ke7 73. Re2 Kf6) 73. Kb6 {[%emt 0:00:26]} Re5 {[%emt 0:00:10]} 74. Rxe5 {[%emt 0:00:16] White mates.} Kxe5 {[%emt 0:00:04]} 75. Kc5 {[%emt 0:00:03]} Kf4 {[%emt 0:00:08]} 76. Kd6 {[%emt 0:01:26]} e5 {[%emt 0:00:08]} 77. Kd5 {[%emt 0:00:04]} e4 {[%emt 0:00:19] [#]} 78. fxe4 $1 {[%emt 0:00:04][%cal Bf3e4,Be4e5][%mdl 32]} Kxg4 {[%emt 0:00:05]} 79. e5 {[%emt 0:00:03] Weighted Error Value: White=0.19 (very precise) /Black=0.20 (precise)} 1-0

[Event "81st Italian Championship 2022"]
[Site "Cagliari"]
[Date "2022.11.12"]
[Round "1.2"]
[White "Lettieri, Giuseppe"]
[Black "Lodici, Lorenzo"]
[Result "1/2-1/2"]
[ECO "B40"]
[WhiteElo "2427"]
[BlackElo "2536"]
[Annotator "TA"]
[PlyCount "189"]
[EventDate "2022.11.12"]
[EventType "tourn"]
[EventCountry "ITA"]
[SourceTitle "playchess.com"]
[Source "ChessBase"]
[SourceQuality "1"]
[TimeControl "40/6000+30:20/3000:900+30"]

{[%evp 16,189,0,0,0,0,10,10,13,0,18,16,89,68,66,78,84,66,109,87,93,93,89,97,127,0,0,-37,-41,-93,-99,-143,-143,-177,-166,-172,-85,-73,-72,-83,-72,-85,-64,-68,0,-104,-88,-91,-75,-84,-65,-128,-118,-105,-68,-105,-104,-139,-122,-221,-214,-212,-193,-190,-138,-268,-262,-256,-31,-237,-240,-244,-47,-47,-44,-41,-44,-40,-54,-45,-57,-51,-50,-51,-46,-45,-39,-51,-51,-51,-33,-45,-33,-33,-33,-33,-33,-45,-33,-45,-8,-8,0,-43,-22,-22,-22,-22,0,0,0,0,0,0,0,0,0,0,0,0,0,0,0,0,0,0,0,0,12,12,12,12,12,8,8,8,8,8,44,44,43,8,10,12,36,36,36,8,69,69,69,69,69,69,69,69,69,69,69,69,69,69,69,69,69,69,69,69,69,69,69,69,69,69,69,68]} 1. e4 {[%emt 0:00:05]} c5 {[%emt 0:00:40]} 2. Nf3 {[%emt 0:00:07]} e6 {[%emt 0:00:15]} 3. d4 {[%emt 0:09:13]} cxd4 {[%emt 0:02:55]} 4. Nxd4 {[%emt 0:00:06]} Nc6 {[%emt 0:00:04]} 5. Nxc6 {[%emt 0:02:37]} bxc6 {[%emt 0:00:06]} 6. Bd3 {[%emt 0:00:08]} d5 {[%emt 0:00:14]} 7. O-O {[%emt 0:00:15]} Nf6 {[%emt 0:00:05][%cal Bg8f6,Bf6d7,Bd7c5][%mdl 32]} 8. e5 {[%emt 0:04:37]} Nd7 {[%emt 0:00:21]} 9. Re1 {[%emt 0:00:52]} Qc7 {[%emt 0:06:24] has lost popularity (9...Be7). B40: Sicilian: 2...e6, Unusual lines.} 10. Bf4 {[%emt 0:04:45]} Rb8 {[%emt 0:08:31]} 11. Nd2 {[%emt 0:22:03]} Be7 {[%emt 0:05:17] [#] The position is equal.} 12. b3 $146 {[%emt 0:08:24]} ({Predecessor:} 12. Qg4 g5 13. Be3 h5 14. Qe2 c5 15. c3 c4 16. Bc2 Rxb2 17. Ba4 Kf8 18. Bxd7 Bxd7 {0-1 (24) Behl,T (2077)-Rohde,U (2298) Lohmar 2000}) 12... Nc5 {[%emt 0:04:58]} (12... g5 $5 {[%cal Rg5f4]} 13. Be3 Nxe5 $15) 13. Bf1 {[%emt 0:06:47]} a5 {[%emt 0:16:50]} (13... Ba6 $11) 14. Qg4 $16 {[%emt 0:03:53]} g5 {[%emt 0:01:04] aiming for ...Rb4.} 15. Be3 $1 {[%emt 0:00:13]} (15. Bxg5 Rg8 16. Bxe7 Rxg4 $15) 15... h5 {[%emt 0:04:47] [#]} 16. Qg3 {[%emt 0:02:20] White is more active.} Qd8 {[%emt 0:07:15]} 17. f4 {[%emt 0:04:32][%cal Rf4g5]} g4 {[%emt 0:03:37]} 18. Qf2 {[%emt 0:00:41]} Nd7 {[%emt 0:05:08]} 19. c4 {[%emt 0:02:45]} O-O {[%emt 0:04:40]} 20. f5 {[%emt 0:12:10]} (20. Rac1 $16) 20... Nxe5 $11 {[%emt 0:00:24]} 21. Ba7 {[%emt 0:06:10]} (21. Bh6 $5 {[%cal Re1e5]} f6 22. fxe6 Bxe6 23. Bxf8 Bxf8 24. Kh1 $11) 21... Bd6 {[%emt 0:05:38]} 22. Bxb8 {[%emt 0:07:01]} (22. f6 $15) 22... Bxb8 $17 {[%emt 0:00:03]} 23. Kh1 {[%emt 0:08:49]} exf5 {[%emt 0:08:53]} 24. cxd5 {[%emt 0:01:17]} cxd5 {[%emt 0:00:07]} 25. Rad1 {[%emt 0:00:33][%cal Od2c4]} Qc7 {[%emt 0:06:19] Prevents Nc4.} (25... Be6 $19 {[%cal Of5f4]} 26. Qd4 Qd6) 26. Qf4 {[%emt 0:00:57]} Ng6 {[%emt 0:01:36]} 27. Qxc7 {[%emt 0:00:05]} Bxc7 {[%emt 0:00:02]} 28. Nb1 {[%emt 0:00:25]} Rd8 {[%emt 0:01:55]} 29. Nc3 {[%emt 0:00:31]} d4 {[%emt 0:00:05]} ({Black should play} 29... Bb7 $15) 30. Nb5 {[%emt 0:01:13]} (30. Nd5 $1 $11 Rxd5 31. Re8+ Kg7 32. Rxc8) 30... Bb6 {[%emt 0:01:02]} 31. Nd6 {[%emt 0:01:09] Inhibits Bb7.} Be6 $36 {[%emt 0:00:56][%mdl 2048] Black is really pushing.} 32. Nc4 {[%emt 0:00:06]} Bc7 {[%emt 0:01:11][%cal Bb6c7,Bc7d6,Bd6b4][%mdl 32]} 33. Nb2 {[%emt 0:00:30]} (33. Re2 $15) 33... Bd5 {[%emt 0:03:20]} 34. Kg1 {[%emt 0:01:19]} f4 {[%emt 0:01:09]} 35. Bd3 {[%emt 0:00:21]} Bd6 {[%emt 0:04:46]} 36. Bxg6 {[%emt 0:00:56]} fxg6 {[%emt 0:00:02]} 37. Nc4 {[%emt 0:00:31]} (37. Na4 $17) 37... Bb4 $19 {[%emt 0:03:33]} 38. Re5 {[%emt 0:00:10]} Kg7 {[%emt 0:00:13]} 39. Nb6 {[%emt 0:00:39]} Bc6 {[%emt 0:03:48] A strong pair of Bishops.} (39... Bg8 $19 {...Kf6 is the strong threat.} 40. Rd3 Kf6) 40. Re6 {[%emt 0:00:37]} (40. a3 $17 {was necessary.} Bxa3 41. Rxa5) 40... Bb7 {[%emt 0:01:01]} 41. Nc4 {[%emt 0:15:25][%cal Oc4a5]} f3 $2 {[%emt 0:10:34]} (41... d3 $19 {And now ...f3 would win.} 42. Ne5 d2 43. Rxg6+ Kh7) 42. Nxa5 $2 {[%emt 0:08:57] [#]} Bd5 $1 {[%emt 0:05:30]} (42... Bxa5 43. Re7+ Kf6 44. Rxb7 $18) (42... f2+ 43. Kf1 Bd5 44. Nc6 $14) 43. Nc6 {[%emt 0:01:08]} Bc5 $2 {[%emt 0:03:24]} (43... Bxe6 $19 44. Nxd8 Bd5 45. gxf3 gxf3) 44. b4 $15 {[%emt 0:03:34]} Rf8 {[%emt 0:04:50]} 45. gxf3 $1 {[%emt 0:05:32]} (45. Re5 $2 f2+ 46. Kf1 Bc4+ 47. Re2 Bb6 $19) 45... gxf3 {[%emt 0:04:52]} 46. Kf2 {[%emt 0:01:11]} Ra8 {[%emt 0:02:38]} (46... Bxa2 47. Re5 Bd6 48. Ra5 $14) 47. Rd2 {[%emt 0:06:50]} Bf8 {[%emt 0:01:25]} (47... Bxa2 $2 48. Re1 (48. bxc5 Bxe6 49. Nxd4 Bg4 $15) 48... Bd5 49. bxc5 $18) 48. Nxd4 {[%emt 0:01:20]} Bxb4 {[%emt 0:00:00]} 49. Rc2 {[%emt 0:00:40]} Bxe6 {[%emt 0:03:15]} (49... Rxa2 50. Rxa2 Bxa2 51. Ra6 $14) ({Much less strong is} 49... Bxa2 50. Rb6 Be7 51. Rc7 $16 (51. Kxf3 Bd5+ 52. Ke2 Re8 $14) (51. Nxf3 Bd8 $16)) 50. Nxe6+ {[%emt 0:00:00][%mdl 4096] Endgame KRB-KRN} Kf6 {[%emt 0:00:00]} 51. Nd4 {[%emt 0:00:00]} Ra3 {[%emt 0:01:05]} 52. Nxf3 {[%emt 0:01:59]} Bc3 {[%emt 0:00:00]} 53. Nd2 {[%emt 0:00:33]} Kf5 {[%emt 0:00:00] Inhibits Ne4.} 54. Nc4 {[%emt 0:00:24]} Bd4+ {[%emt 0:00:00]} 55. Kg2 {[%emt 0:00:00]} Ra6 {[%emt 0:00:00]} 56. Nd2 {[%emt 0:00:00]} g5 {[%emt 0:00:00]} 57. h3 {[%emt 0:00:21]} Kf4 {[%emt 0:04:50]} 58. Nf3 {[%emt 0:00:12]} ({Don't play} 58. Rc4 Ke3 59. Nf3 Rxa2+ 60. Kg3 Bf6 $15) 58... Bf6 {[%emt 0:00:29]} 59. Ng1 {[%emt 0:00:58]} Ra3 {[%emt 0:00:26]} 60. Ne2+ {[%emt 0:00:00]} Ke5 {[%emt 0:03:03]} 61. Ng3 {[%emt 0:16:24]} g4 {[%emt 0:16:00]} 62. hxg4 {[%emt 0:00:00]} h4 {[%emt 0:00:00]} 63. Nh5 {[%emt 0:00:00] Strongly threatening Re2+.} Be7 {[%emt 0:00:00]} 64. Re2+ {[%emt 0:00:00]} Kd6 {[%emt 0:00:00]} 65. Ng7 {[%emt 0:00:00] Black must now prevent Nf5+.} Bg5 {[%emt 0:00:00]} (65... Rg3+ $2 66. Kh2 Kc5 67. Rxe7 $18) 66. Nf5+ {[%emt 0:00:00]} Kd5 {[%emt 0:00:00]} 67. Rf2 {[%emt 0:00:31]} Ke5 {[%emt 0:00:00]} 68. Rf3 {[%emt 0:02:43]} Rxa2+ {[%emt 0:00:00]} 69. Kh3 {[%emt 0:00:15]} Bf4 {[%emt 0:00:00][%csl Gf4][%cal Ra2h2]} 70. Kxh4 {[%emt 0:00:36]} Ke4 {[%emt 0:00:00]} 71. Rh3 {[%emt 0:00:39]} Ra8 {[%emt 0:00:00] ( -> ...Rh8+)} 72. Ng3+ {[%emt 0:00:13]} Ke5 {[%emt 0:00:00]} 73. Nh5 {[%emt 0:00:33]} Bd2 {[%emt 0:00:00]} 74. Rd3 {[%emt 0:00:33]} Be1+ {[%emt 0:00:00]} 75. Kh3 $1 {[%emt 0:00:01] Hoping for Re3+.} Ke4 {[%emt 0:00:00] Against Re3+} 76. Rb3 {[%emt 0:00:16]} Rc8 {[%emt 0:00:00]} 77. Ng3+ {[%emt 0:00:36]} Kf4 {[%emt 0:00:00]} 78. Ne2+ {[%emt 0:00:14]} (78. Rb5 $5 {[%cal Rb5f5]}) 78... Kg5 {[%emt 0:00:00]} 79. Rb5+ {[%emt 0:00:09]} Kf6 {[%emt 0:00:00]} 80. g5+ {[%emt 0:00:23]} Kg7 {[%emt 0:00:00]} 81. Kg4 {[%emt 0:00:26]} Bd2 {[%emt 0:00:00]} (81... Rc4+ $1 $11 82. Kf5 Bd2) 82. Ng3 $14 {[%emt 0:00:40] White is slightly better.} Rc4+ {[%emt 0:00:00]} 83. Kh5 {[%emt 0:00:25] Nf5+ would kill now.} Bxg5 {[%emt 0:00:00]} 84. Kxg5 {[%emt 0:00:15] KRN-KR} Kf7 {[%emt 0:00:00]} 85. Kf5 {[%emt 0:00:33]} Ke7 {[%emt 0:00:00]} 86. Ke5 {[%emt 0:00:17]} Kd7 {[%emt 0:00:00]} 87. Ne4 {[%emt 0:00:22]} Kc6 {[%emt 0:00:00]} 88. Rb8 {[%emt 0:00:19] Intending Rc8+ and mate.} Ra4 {[%emt 0:00:00]} 89. Rc8+ {[%emt 0:00:09]} Kd7 {[%emt 0:00:00]} 90. Rc5 {[%emt 0:00:09]} Ra6 {[%emt 0:00:00]} 91. Nf6+ {[%emt 0:00:15]} Kd8 {[%emt 0:00:00]} 92. Nd5 {[%emt 0:01:00]} Rh6 {[%emt 0:00:00]} 93. Nf4 {[%emt 0:00:24]} Kd7 {[%emt 0:00:00]} 94. Ra5 {[%emt 0:01:27]} Rh1 {[%emt 0:00:00]} 95. Kd4 {[%emt 0:03:17] And White is the lucky defender.  Weighted Error Value: White=0.20 (precise) /Black=0.23 (precise)} 1/2-1/2

[Event "81st Italian Championship 2022"]
[Site "Cagliari"]
[Date "2022.11.12"]
[Round "1.3"]
[White "Carnicelli, Valerio"]
[Black "Dvirnyy, Danyyil"]
[Result "1/2-1/2"]
[ECO "C54"]
[WhiteElo "2325"]
[BlackElo "2514"]
[Annotator "TA"]
[PlyCount "90"]
[EventDate "2022.11.12"]
[EventType "tourn"]
[EventCountry "ITA"]
[SourceTitle "playchess.com"]
[Source "ChessBase"]
[SourceQuality "1"]
[TimeControl "40/6000+30:20/3000:900+30"]

{[%evp 10,90,19,19,26,13,8,7,21,0,11,14,29,17,17,30,27,4,16,15,10,0,0,0,0,0,4,4,37,0,99,0,0,0,0,0,0,0,0,0,0,-7,0,0,0,0,0,0,0,0,0,0,0,0,0,0,0,0,0,0,0,0,0,0,0,0,0,0,0,0,0,0,0,0,0,0,0,0,0,0,0,0,0]} 1. e4 {[%emt 0:00:03]} e5 {[%emt 0:00:14]} 2. Nf3 {[%emt 0:00:04]} Nc6 {[%emt 0:00:06]} 3. Bc4 {[%emt 0:00:05]} Bc5 {[%emt 0:00:19]} 4. c3 {[%emt 0:00:04]} Nf6 {[%emt 0:00:22]} 5. d3 {[%emt 0:00:05]} d6 {[%emt 0:01:31]} 6. O-O {[%emt 0:00:07]} a5 {[%emt 0:02:01] C54: Giuoco Piano: 4 c3 Nf6, main lines with 5 d4 and 5 d3.} 7. Re1 {[%emt 0:00:19]} h6 {[%emt 0:06:20]} 8. Nbd2 {[%emt 0:00:19][%cal Bb1d2,Bd2f1,Bf1g3][%mdl 32]} O-O {[%emt 0:02:28]} 9. h3 {[%emt 0:00:14]} Be6 {[%emt 0:07:20]} 10. Bb5 {[%emt 0:00:16]} Ne7 {[%emt 0:00:43] 10...Nd7 is a critical line.} 11. Nf1 {[%emt 0:04:08]} c6 {[%emt 0:04:25]} 12. Ba4 {[%emt 0:00:21]} Ng6 {[%emt 0:03:13]} 13. Ng3 {[%emt 0:05:42]} b5 {[%emt 0:09:08]} 14. Bc2 {[%emt 0:00:42]} a4 {[%emt 0:00:20] [#]} 15. a3 $146 {[%emt 0:04:55]} ({Predecessor:} 15. d4 Bb6 16. Be3 a3 17. b4 Qc7 18. Qd2 Rfd8 19. Nf5 d5 20. Bxh6 Nxe4 21. Bxe4 dxe4 22. Nxg7 exf3 23. Nxe6 fxe6 {0-1 (28) Abrahamyan,T (2358)-Dauletova,G (2319) Chess.com INT 2020}) 15... Re8 {[%emt 0:03:54]} 16. d4 {[%emt 0:05:31]} Bb6 {[%emt 0:00:20]} 17. Be3 {[%emt 0:05:19]} Qc7 {[%emt 0:02:36]} 18. Qd2 {[%emt 0:03:22]} Rad8 {[%emt 0:00:36]} 19. Rad1 {[%emt 0:12:14]} (19. Nf5 {keeps more tension.} Qd7 20. Rad1 exd4 21. Bxd4 Bxd4 22. N3xd4 Bxf5 23. Nxf5 d5 24. exd5 Qxd5 25. Rxe8+ Rxe8 26. Qxd5 Nxd5 27. Nd4) 19... d5 {[%emt 0:23:45] [#]} (19... Qe7 $11 {keeps the balance.}) 20. Qc1 {[%emt 0:06:39]} (20. Nxe5 $1 $16 Nxe5 21. dxe5 Nxe4 22. Bxb6 Qxb6 23. Bxe4 dxe4 24. Qf4) 20... Nxe4 {[%emt 0:02:57] The position is equal.} 21. Nxe4 {[%emt 0:04:41]} dxe4 {[%emt 0:00:17]} 22. Nxe5 {[%emt 0:11:28]} Nxe5 {[%emt 0:00:19]} 23. dxe5 {[%emt 0:06:34]} Rxd1 {[%emt 0:04:22]} 24. Qxd1 {[%emt 0:01:57]} Bxe3 {[%emt 0:01:52]} 25. Rxe3 {[%emt 0:00:02]} Bd5 {[%emt 0:01:39]} 26. Bxe4 {[%emt 0:01:01]} Bxe4 {[%emt 0:02:18]} 27. Rxe4 {[%emt 0:02:49]} Rxe5 {[%emt 0:00:08]} 28. Rxe5 {[%emt 0:01:00]} Qxe5 $11 {[%emt 0:00:06][%mdl 4096] Endgame KQ-KQ} 29. Qd8+ {[%emt 0:01:26]} Kh7 {[%emt 0:00:06]} 30. Qd3+ {[%emt 0:00:30]} g6 {[%emt 0:00:10]} 31. g3 {[%emt 0:02:02]} Kg7 {[%emt 0:05:22]} 32. Kg2 {[%emt 0:00:54]} h5 {[%emt 0:14:13]} 33. h4 {[%emt 0:09:19]} Qe6 {[%emt 0:02:49]} 34. Qd4+ {[%emt 0:02:47]} f6 {[%emt 0:01:45]} 35. Qa7+ {[%emt 0:04:35]} Kf8 {[%emt 0:00:13]} 36. Qc5+ {[%emt 0:01:45]} Kf7 {[%emt 0:01:45]} 37. Qa7+ {[%emt 0:00:51]} Ke8 {[%emt 0:01:53]} 38. Qc7 {[%emt 0:09:59]} g5 {[%emt 0:01:08]} 39. hxg5 {[%emt 0:01:02] [#] g6 is the strong threat.} fxg5 {[%emt 0:01:55]} 40. Qh7 {[%emt 0:01:55]} Qd5+ {[%emt 0:00:49]} 41. Kg1 {[%emt 0:51:52]} Qd1+ {[%emt 0:49:57]} 42. Kh2 {[%emt 0:00:00]} Qf3 {[%emt 0:00:00]} 43. Kg1 {[%emt 0:00:00]} Qd1+ {[%emt 0:00:00]} 44. Kh2 {[%emt 0:00:00]} Qf3 {[%emt 0:00:00]} 45. Kg1 {[%emt 0:00:00]} Qd1+ {[%emt 0:00:00] Weighted Error Value: White=0.07 (flawless) /Black=0.06 (flawless)} 1/2-1/2

[Event "81st Italian Championship 2022"]
[Site "Cagliari"]
[Date "2022.11.12"]
[Round "1.4"]
[White "Godena, Michele"]
[Black "Di Benedetto, Edoardo"]
[Result "1/2-1/2"]
[ECO "C07"]
[WhiteElo "2463"]
[BlackElo "2378"]
[Annotator "TA"]
[PlyCount "37"]
[EventDate "2022.11.12"]
[EventType "tourn"]
[EventCountry "ITA"]
[SourceTitle "playchess.com"]
[Source "ChessBase"]
[SourceQuality "1"]
[TimeControl "40/6000+30:20/3000:900+30"]

{[%evp 13,37,2,14,10,19,16,0,12,9,-10,-11,1,-13,-19,-6,-20,18,8,41,41,27,7,14,0,12,0]} 1. e4 {[%emt 0:00:04]} e6 {[%emt 0:00:08]} 2. d4 {[%emt 0:00:10]} d5 {[%emt 0:00:05]} 3. Nd2 {[%emt 0:00:08]} c5 {[%emt 0:00:15]} 4. exd5 {[%emt 0:01:44]} Qxd5 {[%emt 0:00:07]} 5. dxc5 {[%emt 0:00:13]} Bxc5 {[%emt 0:00:33]} 6. Ngf3 {[%emt 0:00:10]} Nf6 {[%emt 0:04:05]} 7. Bc4 {[%emt 0:00:37]} Qh5 {[%emt 0:01:16]} 8. Qe2 {[%emt 0:41:47] C07: French Tarrasch: 3...c5, 4 Ngf3 and 4 exd5 Qxd5.} Nc6 {[%emt 0:02:30]} 9. Ne4 {[%emt 0:07:11]} Nxe4 {[%emt 0:04:43]} 10. Qxe4 {[%emt 0:00:06] [#]} Qg6 $146 {[%emt 0:07:23]} (10... Bd7 {is more complex.} 11. O-O Bd6 12. Be2 Qg6) ({Predecessor:} 10... O-O 11. O-O Be7 12. Re1 Rd8 13. Bf4 Qg6 14. Qe2 Qf6 15. Bc7 Rd7 16. Be5 Nxe5 17. Nxe5 {½-½ (26) Bissmann,S (2382)-Jahn,P (2213) ICCF email 2017}) 11. Qxg6 {[%emt 0:14:11]} hxg6 {[%emt 0:00:09]} 12. c3 {[%emt 0:00:11]} f6 {[%emt 0:14:11]} 13. b4 {[%emt 0:13:05][%cal Bb2b4,Bb4b5][%mdl 32]} Bb6 {[%emt 0:02:59]} 14. a4 {[%emt 0:01:11]} a5 {[%emt 0:02:32]} 15. b5 {[%emt 0:00:07]} Nd8 {[%emt 0:00:30]} 16. Bd3 {[%emt 0:10:58]} g5 {[%emt 0:08:42]} 17. Nd2 {[%emt 0:03:46]} Nf7 {[%emt 0:10:36]} 18. Nc4 {[%emt 0:02:38]} Bc5 {[%emt 0:01:28]} 19. Be3 {[%emt 0:04:16] Weighted Error Value: White=0.08 (flawless) /Black=0.08 (flawless)} 1/2-1/2